bitfinex/quotes_BTCUSD_20251120
["timestamp","ask_amount","ask_price","bid_price","bid_amount"]
[1763668293457,0.00012411,86693.0,86692.0,0.0524521]
[1763668293697,0.00012411,86693.0,86692.0,0.42755459]
[1763668293866,0.00012411,86693.0,86692.0,0.45670324]
[1763668294254,0.00012411,86693.0,86692.0,0.54353659]
[1763668295324,0.00012411,86693.0,86692.0,0.41371249]
[1763668295527,0.00012411,86693.0,86692.0,0.09071249]
[1763668295684,0.00012411,86693.0,86692.0,0.01656]
[1763668295891,0.00012411,86693.0,86692.0,0.01856]
[1763668296101,0.00012411,86693.0,86692.0,0.01756]
[1763668296325,0.00012411,86693.0,86692.0,0.01956]
[1763668296527,0.00012411,86693.0,86692.0,0.002]
[1763668296727,0.00012411,86693.0,86692.0,0.001]
[1763668296930,0.00012411,86693.0,86692.0,0.003]
[1763668297363,0.00012411,86693.0,86692.0,0.001]
[1763668297957,0.00012411,86693.0,86689.0,0.0023529]
[1763668298165,0.00012411,86693.0,86692.0,0.01556]
[1763668298529,0.00012411,86693.0,86692.0,0.0524521]
[1763668298733,0.00012411,86693.0,86692.0,0.10455459]
[1763668298936,0.00012411,86693.0,86692.0,0.11524534]
[1763668299628,0.00012411,86693.0,86692.0,0.10455459]
[1763668300450,0.00012411,86693.0,86692.0,0.42755459]
[1763668300654,0.00012411,86693.0,86692.0,0.41471249]
[1763668300805,0.00012411,86693.0,86692.0,0.44541276]
[1763668300986,0.00012411,86693.0,86692.0,0.41471249]
[1763668301334,0.00012411,86693.0,86692.0,0.47299001]
[1763668301824,0.00012411,86693.0,86692.0,0.47199001]
[1763668301971,0.00012411,86693.0,86692.0,0.47399001]
[1763668302173,0.00012411,86693.0,86692.0,0.53548826]
[1763668302501,0.00012411,86693.0,86692.0,0.47099001]
[1763668302904,0.00012411,86693.0,86692.0,0.47299001]
[1763668303246,0.2436,86764.0,86692.0,0.47299001]
[1763668303247,0.2436,86764.0,86701.0,0.05210249]
[1763668303248,0.11476708,86744.0,86701.0,0.05210249]
[1763668303435,0.11476708,86744.0,86715.0,0.37510249]
[1763668303436,0.11489241,86744.0,86715.0,0.37510249]
[1763668303631,0.11489241,86744.0,86717.0,0.05210249]
[1763668304002,0.11489241,86744.0,86719.0,0.05210249]
[1763668304207,0.00012533,86744.0,86743.0,0.02698]
[1763668304413,0.00012533,86744.0,86743.0,0.10213249]
[1763668304609,0.00012533,86744.0,86743.0,0.42513249]
[1763668305942,0.11476708,86788.0,86744.0,0.39815249]
[1763668306151,0.11476708,86773.0,86755.0,0.01556]
[1763668306353,0.78437306,86770.0,86747.0,0.05210249]
[1763668306521,0.11476708,86773.0,86747.0,0.05210249]
[1763668306742,0.11476708,86773.0,86745.0,0.05210249]
[1763668306877,0.01147671,86772.0,86745.0,0.05210249]
[1763668307679,0.01147671,86772.0,86744.0,0.07515249]
[1763668308018,0.78437306,86770.0,86744.0,0.07515249]
[1763668308631,0.01809133,86764.0,86744.0,0.07515249]
[1763668309029,0.01809133,86764.0,86744.0,0.05210249]
[1763668309230,0.01809133,86764.0,86745.0,0.02305]
[1763668309744,0.01809133,86764.0,86763.0,0.01142]
[1763668310775,0.01809133,86764.0,86763.0,0.10213249]
[1763668310932,0.01821541,86788.0,86763.0,0.42513249]
[1763668311142,0.11476708,86787.0,86764.0,0.07515249]
[1763668311349,0.01808689,86773.0,86764.0,0.07515249]
[1763668311552,0.00012528,86788.0,86786.0,0.01142]
[1763668314258,0.01821054,86788.0,86786.0,0.01142]
[1763668314452,0.01821054,86788.0,86782.0,0.01142]
[1763668315342,0.01821054,86788.0,86787.0,0.01556]
[1763668315753,0.01922234,86788.0,86787.0,0.01556]
[1763668315927,0.01922234,86788.0,86787.0,0.03861]
[1763668316713,0.01922234,86788.0,86787.0,0.01556]
[1763668316912,0.01922234,86788.0,86782.0,0.01142]
[1763668317160,0.01821054,86788.0,86782.0,0.01142]
[1763668317486,0.01821054,86788.0,86787.0,0.01556]
[1763668317936,0.01821054,86788.0,86787.0,0.03861]
[1763668319957,0.00012528,86788.0,86787.0,0.03861]
[1763668320361,0.00012528,86788.0,86787.0,0.01556]
[1763668320566,0.00012528,86788.0,86787.0,0.03861]
[1763668321182,0.0002,86810.0,86788.0,0.05210249]
[1763668321341,0.0002,86810.0,86809.0,0.01142]
[1763668321881,0.0002,86810.0,86802.0,0.01142]
[1763668322258,0.0002,86810.0,86796.0,0.02305]
[1763668322259,0.0002,86810.0,86783.0,0.07552249]
[1763668322430,0.0012,86810.0,86785.0,0.05210249]
[1763668322630,0.0022,86810.0,86785.0,0.05210249]
[1763668322832,0.0012,86810.0,86787.0,0.05210249]
[1763668323144,0.0012,86810.0,86771.0,0.323]
[1763668323145,0.0012,86810.0,86773.0,0.01128]
[1763668323146,0.78437306,86797.0,86773.0,0.01128]
[1763668323371,0.11476708,86786.0,86773.0,0.00010143]
[1763668323587,0.323,86799.0,86773.0,0.00010143]
[1763668323736,0.1137852,86785.0,86773.0,0.00010143]
[1763668324149,0.78437306,86783.0,86773.0,0.00010143]
[1763668324392,0.323,86782.0,86773.0,0.00010143]
[1763668324768,0.01808849,86781.0,86773.0,0.00010143]
[1763668324967,0.323,86782.0,86773.0,0.00010143]
[1763668326009,0.001,86781.0,86773.0,0.00010143]
[1763668326160,0.323,86782.0,86773.0,0.00010143]
[1763668326615,0.78437306,86783.0,86773.0,0.00010143]
[1763668327578,0.001,86782.0,86773.0,0.00010143]
[1763668328016,0.0107456,86781.0,86773.0,0.00010143]
[1763668328226,0.0107456,86780.0,86773.0,0.00010143]
[1763668328442,0.78537306,86783.0,86773.0,0.00010143]
[1763668328651,0.3337466,86782.0,86773.0,0.00010143]
[1763668328795,0.324,86782.0,86773.0,0.00010143]
[1763668329010,0.323,86782.0,86773.0,0.00010143]
[1763668329412,0.001,86780.0,86773.0,1.43e-06]
[1763668330661,0.323,86782.0,86773.0,1.43e-06]
[1763668331070,0.324,86782.0,86773.0,1.43e-06]
[1763668331368,0.323,86782.0,86773.0,1.43e-06]
[1763668331596,0.001,86780.0,86773.0,1.43e-06]
[1763668332002,0.01076373,86779.0,86773.0,1.43e-06]
[1763668332135,0.323,86782.0,86773.0,1.43e-06]
[1763668332136,0.01076419,86778.0,86773.0,1.43e-06]
[1763668332329,0.324,86782.0,86773.0,1.43e-06]
[1763668332330,0.01076419,86777.0,86773.0,1.43e-06]
[1763668332571,0.01076419,86776.0,86773.0,1.43e-06]
[1763668332720,0.01076419,86775.0,86773.0,1.43e-06]
[1763668332915,0.03230593,86774.0,86773.0,1.43e-06]
[1763668333572,0.03287516,86774.0,86773.0,1.43e-06]
[1763668333808,0.01133342,86774.0,86773.0,1.43e-06]
[1763668333934,0.00056923,86774.0,86773.0,1.43e-06]
[1763668334793,0.00156923,86774.0,86773.0,1.43e-06]
[1763668335482,0.00056923,86774.0,86773.0,1.43e-06]
[1763668337017,0.12682004,86789.0,86773.0,1.43e-06]
[1763668337217,0.4675529,86790.0,86773.0,1.43e-06]
[1763668337420,0.11476708,86782.0,86773.0,1.43e-06]
[1763668338052,0.4675529,86800.0,86781.0,0.01128]
[1763668338212,0.001,86789.0,86781.0,0.01128]
[1763668338616,0.001,86789.0,86773.0,1.43e-06]
[1763668338822,0.11476708,86782.0,86775.0,0.01128]
[1763668339300,0.11476708,86782.0,86773.0,1.43e-06]
[1763668339864,0.01808861,86780.0,86773.0,1.43e-06]
[1763668341604,0.01077729,86779.0,86773.0,1.43e-06]
[1763668341820,0.01808861,86780.0,86773.0,1.43e-06]
[1763668341821,0.01077729,86778.0,86773.0,1.43e-06]
[1763668342027,0.01077729,86777.0,86773.0,1.43e-06]
[1763668342182,0.02008861,86780.0,86773.0,1.43e-06]
[1763668342398,0.01077713,86779.0,86773.0,1.43e-06]
[1763668342586,0.01077713,86778.0,86773.0,1.43e-06]
[1763668342921,0.001,86779.0,86773.0,1.43e-06]
[1763668343150,0.01077701,86778.0,86773.0,1.43e-06]
[1763668343308,0.001,86779.0,86773.0,1.43e-06]
[1763668343309,0.01077738,86777.0,86773.0,1.43e-06]
[1763668343513,0.01077738,86776.0,86773.0,1.43e-06]
[1763668343714,0.01077738,86775.0,86773.0,1.43e-06]
[1763668343915,0.002,86779.0,86773.0,1.43e-06]
[1763668343916,0.03233332,86774.0,86773.0,1.43e-06]
[1763668345113,0.03333332,86774.0,86773.0,1.43e-06]
[1763668345526,0.08543581,86774.0,86773.0,1.43e-06]
[1763668345725,0.08443581,86774.0,86773.0,1.43e-06]
[1763668345929,0.08543581,86774.0,86773.0,1.43e-06]
[1763668346136,0.45369102,86774.0,86773.0,1.43e-06]
[1763668346757,0.45469102,86774.0,86773.0,1.43e-06]
[1763668347127,0.45468325,86774.0,86773.0,1.43e-06]
[1763668347809,0.45568325,86774.0,86773.0,1.43e-06]
[1763668348206,0.45568325,86774.0,86715.0,0.03310768]
[1763668348207,0.45568325,86774.0,86715.0,0.00235192]
[1763668348208,0.05210249,86769.0,86715.0,0.00235192]
[1763668348431,0.05210249,86769.0,86715.0,0.00257722]
[1763668348432,0.11476708,86719.0,86715.0,0.00257722]
[1763668348660,0.323,86729.0,86715.0,0.00257722]
[1763668348861,0.323,86729.0,86718.0,0.01128]
[1763668349475,0.01809663,86727.0,86718.0,0.01128]
[1763668350060,0.0180957,86725.0,86718.0,0.01128]
[1763668350267,0.0180957,86725.0,86719.0,0.03760779]
[1763668350454,0.0180957,86725.0,86724.0,0.01551]
[1763668350654,0.0180957,86725.0,86724.0,0.07405227]
[1763668350852,0.0180957,86725.0,86724.0,0.09782227]
[1763668351297,0.0180957,86725.0,86724.0,0.01551]
[1763668351474,0.0180957,86725.0,86719.0,0.03075576]
[1763668351675,0.0180957,86725.0,86718.0,0.01128]
[1763668352012,0.0180957,86725.0,86724.0,0.01651]
[1763668352375,0.0180957,86725.0,86724.0,0.04061]
[1763668352920,0.0180957,86725.0,86724.0,0.04261]
[1763668353119,0.0180957,86725.0,86724.0,0.04061]
[1763668353678,0.01379002,86758.0,86724.0,0.04061]
[1763668353679,0.4675529,86780.0,86725.0,0.37510249]
[1763668353918,0.4675529,86770.0,86745.0,0.01606]
[1763668354121,0.323,86771.0,86745.0,0.01606]
[1763668354341,0.4675529,86780.0,86745.0,0.01606]
[1763668354342,0.01809152,86753.0,86746.0,0.0241]
[1763668354531,0.4675529,86770.0,86746.0,0.0241]
[1763668354831,0.4675529,86770.0,86739.0,0.05210249]
[1763668355035,0.4675529,86770.0,86741.0,0.05210249]
[1763668355243,0.4675529,86790.0,86742.0,0.01316924]
[1763668355244,0.11476708,86764.0,86742.0,0.01316924]
[1763668355544,0.11476708,86764.0,86742.0,0.0241]
[1763668355762,0.11476708,86764.0,86743.0,0.05210249]
[1763668355901,0.01329858,86773.0,86743.0,0.05210249]
[1763668356102,0.4675529,86780.0,86744.0,0.03813587]
[1763668356103,0.11476708,86766.0,86744.0,0.03813587]
[1763668356502,0.11476708,86766.0,86745.0,0.0241]
[1763668357657,0.01375336,86777.0,86746.0,0.06406249]
[1763668357658,0.11476708,86765.0,86746.0,0.06406249]
[1763668357856,0.11476708,86765.0,86748.0,0.05210249]
[1763668358064,0.11476708,86765.0,86746.0,0.01196]
[1763668358278,0.4675529,86760.0,86746.0,0.01196]
[1763668358449,0.381232,86764.0,86746.0,0.03606]
[1763668358450,0.323,86764.0,86746.0,0.03606]
[1763668359250,0.323,86764.0,86746.0,0.03706]
[1763668359452,0.323,86764.0,86746.0,0.03606]
[1763668359819,0.323,86764.0,86746.0,0.01196]
[1763668360238,0.11476708,86763.0,86747.0,0.0241]
[1763668360444,0.11476708,86763.0,86747.0,0.05314366]
[1763668361064,0.11476708,86763.0,86746.0,0.03606]
[1763668361469,0.11476708,86763.0,86747.0,0.001]
[1763668362467,0.11476708,86763.0,86747.0,0.002]
[1763668362667,0.11476708,86763.0,86747.0,0.001]
[1763668363183,0.11476708,86763.0,86740.0,0.01196]
[1763668363184,0.4675529,86760.0,86740.0,0.01196]
[1763668363382,0.323,86759.0,86740.0,0.01196]
[1763668364066,0.323,86759.0,86747.0,0.001]
[1763668364560,0.11476708,86763.0,86747.0,0.001]
[1763668364561,0.323,86762.0,86747.0,0.001]
[1763668364765,0.11476708,86763.0,86748.0,0.0241]
[1763668364967,0.11476708,86763.0,86749.0,0.01383301]
[1763668365170,0.01809079,86774.0,86750.0,0.0241]
[1763668365481,0.01809098,86760.0,86750.0,0.0241]
[1763668365848,0.11476708,86768.0,86750.0,0.0241]
[1763668366048,0.11476708,86768.0,86751.0,0.01383269]
[1763668366228,0.11476708,86768.0,86752.0,0.0241]
[1763668366430,0.01809079,86774.0,86752.0,0.0309689]
[1763668366632,0.01809079,86774.0,86753.0,0.05210249]
[1763668366831,0.4675529,86790.0,86753.0,0.09003486]
[1763668366832,0.323,86781.0,86753.0,0.09003486]
[1763668367032,0.323,86781.0,86755.0,0.05210249]
[1763668367451,0.323,86781.0,86757.0,0.05210249]
[1763668367669,0.323,86781.0,86758.0,0.02424271]
[1763668367870,0.323,86781.0,86759.0,0.05210249]
[1763668368073,0.11476708,86780.0,86759.0,0.05210249]
[1763668368312,0.00025294,86782.0,86768.0,0.01196]
[1763668368518,0.00025294,86782.0,86781.0,0.02802]
[1763668369196,0.00025294,86782.0,86781.0,0.05212]
[1763668369434,0.0002,86820.0,86781.0,0.05212]
[1763668369580,0.01808539,86782.0,86781.0,0.02815334]
[1763668369781,0.01808539,86782.0,86781.0,0.05225334]
[1763668369981,0.11476708,86798.0,86781.0,0.05225334]
[1763668369982,0.323,86797.0,86781.0,0.00113334]
[1763668370332,0.323,86790.0,86781.0,0.00113334]
[1763668370461,0.323,86790.0,86781.0,0.00213334]
[1763668370462,0.11476708,86784.0,86781.0,0.00213334]
[1763668371146,0.11476708,86784.0,86781.0,0.00113334]
[1763668371270,0.323,86790.0,86781.0,0.00013334]
[1763668371481,0.323,86797.0,86781.0,0.00013334]
[1763668372076,0.323,86797.0,86781.0,0.00113334]
[1763668372281,0.323,86797.0,86781.0,0.00013334]
[1763668373978,0.090532,86796.0,86781.0,0.00013334]
[1763668374455,0.01808707,86793.0,86781.0,0.00013334]
[1763668375071,0.4675529,86791.0,86781.0,0.00013334]
[1763668375467,0.323,86783.0,86781.0,0.00013334]
[1763668376479,0.323,86783.0,86736.0,0.04271626]
[1763668376801,0.11476708,86784.0,86740.0,0.01237443]
[1763668376802,0.11476708,86754.0,86740.0,0.01237443]
[1763668376942,0.11476708,86754.0,86740.0,0.00041443]
[1763668376943,0.4675529,86750.0,86740.0,0.00041443]
[1763668377355,0.323,86749.0,86740.0,0.00041443]
[1763668377551,0.33633631,86749.0,86740.0,0.00041443]
[1763668378905,0.323,86749.0,86740.0,0.00041443]
[1763668379303,0.4675529,86750.0,86741.0,0.01196]
[1763668379508,0.12821484,86754.0,86740.0,0.00041443]
[1763668379730,0.323,86750.0,86740.0,0.00041443]
[1763668382380,0.323,86750.0,86740.0,4.43e-06]
[1763668382583,0.323,86750.0,86715.0,0.00235192]
[1763668382788,0.11476708,86721.0,86715.0,0.00235192]
[1763668382999,0.323,86720.0,86715.0,0.00235192]
[1763668383877,0.323,86720.0,86690.0,0.0004]
[1763668384103,0.11476708,86691.0,86690.0,0.00053371]
[1763668385242,0.323,86704.0,86690.0,0.00053371]
[1763668385444,0.11476708,86691.0,86690.0,0.00053371]
[1763668386314,0.323,86704.0,86690.0,0.00053371]
[1763668386315,0.324,86704.0,86690.0,0.00053371]
[1763668386551,0.324,86704.0,86690.0,0.00153371]
[1763668386738,0.001,86704.0,86690.0,0.00153371]
[1763668387288,0.01810119,86701.0,86690.0,0.00153371]
[1763668387483,0.01810119,86701.0,86690.0,0.03911613]
[1763668387662,0.03620174,86701.0,86690.0,0.03911613]
[1763668387872,0.03620174,86701.0,86691.0,0.02374]
[1763668388073,0.03620174,86701.0,86692.0,0.0138421]
[1763668388643,0.03620174,86701.0,86700.0,0.01534]
[1763668389081,0.03620174,86701.0,86700.0,0.03908]
[1763668389957,0.03620174,86701.0,86700.0,0.04008]
[1763668390588,0.47755289,86760.0,86702.0,0.05210249]
[1763668390589,0.4675529,86750.0,86702.0,0.05210249]
[1763668390914,0.4675529,86760.0,86702.0,0.05210249]
[1763668390915,0.11476708,86734.0,86715.0,0.01534]
[1763668391116,0.4675529,86750.0,86716.0,0.04961827]
[1763668391334,0.11476708,86740.0,86716.0,0.04961827]
[1763668391489,0.11476708,86740.0,86717.0,0.02374]
[1763668391693,0.11476708,86740.0,86718.0,0.035878]
[1763668392101,0.11476708,86740.0,86719.0,0.02374]
[1763668392667,0.1151838,86740.0,86719.0,0.02374]
[1763668393493,0.1151838,86740.0,86720.0,0.05210249]
[1763668393494,0.11476708,86739.0,86720.0,0.05210249]
[1763668393733,0.01809587,86735.0,86721.0,0.02374]
[1763668393884,0.01809587,86735.0,86729.0,0.4675529]
[1763668394090,0.01809587,86735.0,86734.0,0.02738]
[1763668394475,0.01809587,86735.0,86734.0,0.05112]
[1763668394689,0.01809501,86735.0,86734.0,0.05112]
[1763668395868,0.01809501,86735.0,86734.0,0.05212]
[1763668396542,0.01809449,86767.0,86741.0,0.05210249]
[1763668396543,0.00839,86766.0,86741.0,0.05210249]
[1763668396880,0.00839,86766.0,86742.0,0.11493394]
[1763668397180,0.00839,86766.0,86743.0,0.02374]
[1763668397326,0.11476708,86755.0,86741.0,0.00013371]
[1763668397531,0.00088597,86744.0,86741.0,0.00013371]
[1763668397730,0.11476708,86755.0,86741.0,0.00013371]
[1763668397929,0.00082271,86742.0,86741.0,0.00013371]
[1763668398353,0.00082271,86742.0,86741.0,0.01547371]
[1763668398584,0.00082271,86742.0,86741.0,0.03921371]
[1763668398962,0.00082271,86742.0,86741.0,0.01547371]
[1763668399365,0.00082271,86742.0,86741.0,0.00013371]
[1763668399587,0.00082271,86742.0,86741.0,0.03921371]
[1763668399588,0.0189156,86742.0,86741.0,0.03921371]
[1763668399748,0.0189156,86742.0,86741.0,0.00113371]
[1763668399947,0.0189156,86742.0,86741.0,0.00213371]
[1763668400267,0.0189156,86742.0,86741.0,0.04121371]
[1763668400873,0.00082271,86742.0,86741.0,0.04121371]
[1763668401997,0.00082271,86742.0,86741.0,0.0933162]
[1763668403018,0.00082271,86742.0,86741.0,0.0923162]
[1763668403220,0.00082271,86742.0,86741.0,0.0933162]
[1763668403422,0.00082271,86742.0,86741.0,0.45815182]
[1763668403587,0.02019998,86820.0,86741.0,0.45815182]
[1763668403588,0.11476708,86783.0,86751.0,0.37510249]
[1763668403788,0.11476708,86783.0,86750.0,0.78421684]
[1763668403789,0.11476708,86783.0,86760.0,0.37510249]
[1763668404029,0.11476708,86783.0,86761.0,0.03578]
[1763668404231,0.00839,86785.0,86761.0,0.03578]
[1763668404430,0.11476708,86784.0,86762.0,0.07630496]
[1763668404807,0.11476708,86784.0,86761.0,0.33504]
[1763668404808,0.11476708,86784.0,86763.0,0.02374]
[1763668405568,0.11476708,86783.0,86761.0,0.01204]
[1763668405692,0.11476708,86769.0,86761.0,0.01204]
[1763668406412,0.11476708,86769.0,86755.0,0.01204]
[1763668406639,0.00839,86782.0,86755.0,0.01204]
[1763668406839,0.11476708,86783.0,86756.0,0.02374]
[1763668407041,0.0180892,86776.0,86761.0,0.001]
[1763668407408,0.0180892,86776.0,86762.0,0.02374]
[1763668407857,0.0180892,86776.0,86763.0,0.05210249]
[1763668409023,0.0180892,86776.0,86761.0,0.05210249]
[1763668409593,0.0180892,86776.0,86761.0,0.07584249]
[1763668409843,0.11476708,86775.0,86755.0,0.01204]
[1763668410619,0.0180892,86776.0,86756.0,0.08891438]
[1763668411001,0.0180892,86776.0,86756.0,0.07508249]
[1763668411201,0.0180892,86776.0,86757.0,0.00991625]
[1763668411403,0.0180892,86776.0,86755.0,0.01204]
[1763668411586,0.11476708,86765.0,86755.0,0.01204]
[1763668411802,0.11476708,86765.0,86730.0,0.04093533]
[1763668411803,0.11476708,86765.0,86741.0,0.00013371]
[1763668411804,0.00839,86756.0,86741.0,0.00013371]
[1763668412066,0.11476708,86765.0,86741.0,0.00013371]
[1763668412067,0.12315708,86742.0,86741.0,0.00013371]
[1763668412389,0.12215708,86742.0,86741.0,0.00013371]
[1763668412594,0.78421684,86760.0,86741.0,0.00013371]
[1763668412595,0.323,86759.0,86741.0,0.00013371]
[1763668412784,0.11476708,86749.0,86741.0,0.00013371]
[1763668414588,0.11476708,86765.0,86741.0,0.00013371]
[1763668414589,0.01809402,86748.0,86742.0,0.02401]
[1763668414704,0.01364384,86790.0,86742.0,0.02401]
[1763668414705,0.00063261,86762.0,86747.0,0.01666]
[1763668414905,0.78421684,86780.0,86761.0,0.01139]
[1763668415140,0.00738,86781.0,86761.0,0.01139]
[1763668415345,0.00738,86788.0,86761.0,0.01139]
[1763668415707,0.79786068,86790.0,86749.0,0.05210249]
[1763668415708,0.11476708,86765.0,86749.0,0.05210249]
[1763668416111,0.78421684,86780.0,86750.0,0.02401]
[1763668416306,0.10979651,86776.0,86750.0,0.02401]
[1763668416510,0.10979651,86776.0,86751.0,0.01196587]
[1763668416711,0.10979651,86776.0,86752.0,0.05210249]
[1763668416712,0.0180892,86776.0,86752.0,0.05210249]
[1763668417344,0.78421684,86780.0,86754.0,0.05210249]
[1763668417544,0.00738,86777.0,86746.0,0.05210249]
[1763668417746,0.01809041,86773.0,86748.0,0.05210249]
[1763668417966,0.11476708,86765.0,86748.0,0.05210249]
[1763668418347,0.01809041,86773.0,86750.0,0.05210249]
[1763668418528,0.01809041,86773.0,86752.0,0.05210249]
[1763668418734,0.01809041,86773.0,86749.0,0.02401]
[1763668418735,0.01809041,86773.0,86750.0,0.05210249]
[1763668419119,0.01809041,86773.0,86745.0,0.323]
[1763668419120,0.01809041,86773.0,86746.0,0.05210249]
[1763668419321,0.01809041,86773.0,86752.0,0.05210249]
[1763668420354,0.0180905,86768.0,86752.0,0.05210249]
[1763668420554,0.0180905,86768.0,86752.0,0.09508937]
[1763668420762,0.0180905,86768.0,86754.0,0.05210249]
[1763668421160,0.0180905,86768.0,86752.0,0.04298688]
[1763668421161,0.00041123,86755.0,86752.0,0.04298688]
[1763668421521,0.00041123,86755.0,86742.0,0.05232533]
[1763668421522,0.11476708,86765.0,86744.0,0.05210249]
[1763668421523,0.00034797,86753.0,86744.0,0.05210249]
[1763668421647,0.11476708,86765.0,86742.0,0.01139]
[1763668421648,0.01328576,86764.0,86742.0,0.01139]
[1763668421851,0.78421684,86760.0,86742.0,0.01139]
[1763668422104,0.02066576,86764.0,86742.0,0.01139]
[1763668422332,0.00738,86763.0,86742.0,0.01139]
[1763668422452,0.78421684,86760.0,86742.0,0.01139]
[1763668422647,0.01535233,86762.0,86742.0,0.01139]
[1763668422899,0.11476708,86751.0,86742.0,0.01139]
[1763668423472,0.11476708,86751.0,86741.0,0.00013371]
[1763668423874,0.78421684,86760.0,86741.0,0.00013371]
[1763668424101,0.11476708,86751.0,86742.0,0.001]
[1763668424510,0.01535233,86762.0,86741.0,0.00013371]
[1763668424715,0.11476708,86765.0,86741.0,0.00013371]
[1763668425164,0.11476708,86751.0,86741.0,0.00013371]
[1763668425371,0.00738,86742.0,86741.0,0.00013371]
[1763668425716,0.90636392,86751.0,86741.0,0.00013371]
[1763668427049,0.00738,86742.0,86741.0,0.00013371]
[1763668427467,0.01476,86742.0,86741.0,0.00013371]
[1763668427765,0.32325308,86750.0,86741.0,0.00013371]
[1763668427766,0.11476708,86749.0,86741.0,0.00013371]
[1763668428002,0.00738,86742.0,86741.0,0.00013371]
[1763668428354,0.01476,86742.0,86741.0,0.00013371]
[1763668428557,0.02555155,86742.0,86741.0,0.00013371]
[1763668428773,0.0471352,86742.0,86741.0,0.00013371]
[1763668429379,0.02554617,86742.0,86741.0,0.00013371]
[1763668429640,0.0730277,86742.0,86741.0,0.00013371]
[1763668429851,0.0730277,86742.0,86741.0,3.71e-06]
[1763668430058,0.0730277,86742.0,86700.0,0.01139]
[1763668430059,0.0945986,86742.0,86700.0,0.01139]
[1763668430250,0.11476708,86713.0,86700.0,0.01180672]
[1763668430631,0.11476708,86713.0,86700.0,0.00041672]
[1763668430632,0.00738,86701.0,86700.0,0.00041672]
[1763668431734,0.00738,86707.0,86700.0,0.00041672]
[1763668431938,0.00738,86707.0,86701.0,0.01139]
[1763668432145,0.00738,86707.0,86700.0,0.00041672]
[1763668432359,0.00738,86701.0,86700.0,0.00141672]
[1763668432598,0.00738,86701.0,86700.0,0.00041672]
[1763668432803,0.01476,86701.0,86700.0,0.00141672]
[1763668433012,0.00738,86701.0,86700.0,0.00141672]
[1763668433426,0.00738,86707.0,86700.0,0.00141672]
[1763668433640,0.00738,86707.0,86701.0,0.01139]
[1763668433862,0.01810048,86706.0,86701.0,0.01139]
[1763668434068,0.01810048,86706.0,86700.0,0.00041672]
[1763668434687,0.01810048,86706.0,86705.0,0.01139]
[1763668434909,0.01810048,86706.0,86705.0,0.02805]
[1763668435118,0.00738,86717.0,86705.0,0.05206]
[1763668435330,0.00738,86717.0,86706.0,0.02401]
[1763668435539,0.00738,86733.0,86706.0,0.02401]
[1763668435540,0.00738,86722.0,86707.0,0.01383971]
[1763668435759,0.00738,86722.0,86708.0,0.00658997]
[1763668435972,0.00738,86722.0,86706.0,0.02401]
[1763668436173,0.00738,86722.0,86707.0,0.01383971]
[1763668436818,0.00738,86722.0,86706.0,0.01383987]
[1763668437036,0.00738,86722.0,86706.0,0.03784987]
[1763668437961,0.00738,86722.0,86707.0,0.02401]
[1763668438159,0.0180983,86719.0,86708.0,0.01383955]
[1763668438358,0.0180983,86719.0,86709.0,0.01383939]
[1763668438558,0.0180983,86719.0,86718.0,0.02805]
[1763668438951,0.0180983,86719.0,86718.0,0.05206]
[1763668439151,0.01809767,86719.0,86718.0,0.05206]
[1763668439352,0.00025308,86750.0,86719.0,0.37510249]
[1763668439597,0.00025308,86750.0,86733.0,0.01666]
[1763668439793,0.00025308,86750.0,86725.0,0.323]
[1763668439794,0.00025308,86750.0,86749.0,0.02805]
[1763668440026,0.00025308,86750.0,86749.0,0.05206]
[1763668440264,0.00025308,86750.0,86749.0,0.42716249]
[1763668440434,0.03464973,86791.0,86749.0,0.42716249]
[1763668440435,0.03464973,86791.0,86750.0,0.37510249]
[1763668440645,0.00905,86801.0,86750.0,0.37510249]
[1763668440646,0.00905,86801.0,86778.0,0.01139]
[1763668440883,0.0002,86830.0,86778.0,0.01139]
[1763668440884,0.0002,86830.0,86790.0,0.01139]
[1763668440885,0.02418,86820.0,86790.0,0.01139]
[1763668441033,0.02418,86820.0,86791.0,0.05210249]
[1763668441034,0.01498667,86820.0,86791.0,0.05210249]
[1763668441439,0.03303,86819.0,86791.0,0.05210249]
[1763668441627,0.03303,86819.0,86782.0,0.05210249]
[1763668441628,0.78421684,86810.0,86782.0,0.05210249]
[1763668441830,0.11476708,86799.0,86783.0,0.04105025]
[1763668441988,0.11476708,86799.0,86782.0,0.00013366]
[1763668442578,0.01808448,86804.0,86782.0,0.00013366]
[1763668442579,0.01808448,86804.0,86791.0,0.001]
[1763668442830,0.01808448,86804.0,86783.0,0.05210249]
[1763668443243,0.0180834,86799.0,86785.0,0.05210249]
[1763668443449,0.0180834,86799.0,86787.0,0.05210249]
[1763668443653,0.0180834,86799.0,86798.0,0.02641]
[1763668443859,0.0180834,86799.0,86787.0,0.37510249]
[1763668443860,0.0180834,86799.0,86788.0,0.0347]
[1763668444066,0.0180834,86799.0,86789.0,0.05210249]
[1763668444478,0.0180834,86799.0,86789.0,0.07553249]
[1763668445101,0.0180834,86799.0,86788.0,0.01127]
[1763668445556,0.0180834,86799.0,86782.0,0.00113366]
[1763668445557,0.0180834,86799.0,86782.0,0.00013366]
[1763668445558,0.02512,86789.0,86782.0,0.00013366]
[1763668445763,0.01607,86783.0,86782.0,0.00013366]
[1763668445931,0.01607,86783.0,86782.0,3.66e-06]
[1763668446129,0.01607,86783.0,86740.0,0.02343]
[1763668446130,0.03961,86783.0,86743.0,0.01127]
[1763668446316,0.11476708,86756.0,86743.0,0.0114953]
[1763668446516,0.11476708,86756.0,86743.0,0.0002253]
[1763668446725,0.0075,86755.0,86743.0,0.0002253]
[1763668448586,0.02354,86754.0,86743.0,0.0002253]
[1763668449062,0.78421684,86753.0,86743.0,0.0002253]
[1763668449782,0.0075,86755.0,86743.0,0.0002253]
[1763668451086,0.11476708,86770.0,86744.0,0.02343]
[1763668451324,0.24084718,86810.0,86744.0,0.02343]
[1763668451325,0.78421684,86780.0,86745.0,0.18070322]
[1763668451534,0.0180834,86799.0,86745.0,0.18070322]
[1763668451535,0.00905,86777.0,86747.0,0.05210249]
[1763668451758,0.0180834,86799.0,86771.0,0.01127]
[1763668451759,0.02354,86798.0,86771.0,0.01127]
[1763668452026,0.0180834,86799.0,86783.0,0.01127]
[1763668452027,0.00905,86796.0,86783.0,0.01127]
[1763668452213,0.0180834,86799.0,86788.0,0.01514]
[1763668452428,0.01808407,86793.0,86788.0,0.01514]
[1763668452645,0.0180834,86799.0,86783.0,0.01127]
[1763668452646,0.0180834,86799.0,86793.0,0.05210249]
[1763668452889,0.0180834,86799.0,86798.0,0.01514]
[1763668453116,0.0180834,86799.0,86793.0,7.5e-05]